bitfinex/quotes_SOLUSD_20260203
["timestamp","ask_amount","ask_price","bid_price","bid_amount"]
[1770097771588,2.03259588,104.23,104.21,2.72397548]
[1770097772699,11.62678101,104.23,104.21,2.72397548]
[1770097773107,2.02135291,104.22,104.19,12.32130591]
[1770097773310,2.02135291,104.22,104.2,2.72397548]
[1770097773606,5.56517788,104.22,104.19,2.72397548]
[1770097774310,2.01769101,104.21,104.19,2.72397548]
[1770097776012,11.61378829,104.21,104.19,2.72397548]
[1770097779409,9.59609728,104.21,104.19,2.72397548]
[1770097780400,1.99658618,104.24,104.21,2.72397548]
[1770097780907,1.99658618,104.24,104.21,6.26780045]
[1770097781116,1.99320875,104.25,104.22,2.72397548]
[1770097781321,11.58553488,104.25,104.22,2.72397548]
[1770097785701,11.57175994,104.26,104.23,2.72397548]
[1770097786501,9.5916774,104.26,104.24,2.72397548]
[1770097786818,11.56542083,104.26,104.24,2.72397548]
[1770097787117,11.56542083,104.26,104.23,6.26780045]
[1770097788023,1.97062837,104.24,104.21,2.72397548]
[1770097789111,5.51445334,104.24,104.21,2.72397548]
[1770097789417,1.96754909,104.23,104.19,6.26780045]
[1770097789621,11.56269587,104.22,104.19,2.72397548]
[1770097792300,11.56269587,104.22,104.19,12.32180453]
[1770097794023,11.56269587,104.22,104.19,2.72397548]
[1770097795833,1.94137941,104.21,104.18,2.5290825]
[1770097796208,1.94137941,104.21,104.17,15.67228581]
[1770097796423,1.94137941,104.21,104.18,2.5290825]
[1770097797917,1.94137941,104.21,104.18,13.14240054]
[1770097798119,1.94137941,104.21,104.19,2.5290825]
[1770097798314,11.53107105,104.22,104.19,2.5290825]
[1770097799902,9.59514678,104.22,104.19,2.5290825]
[1770097801317,11.52312107,104.22,104.19,2.5290825]
[1770097801628,1.92797429,104.21,104.18,2.5290825]
[1770097802331,11.52421983,104.21,104.18,2.5290825]
[1770097804139,15.06720866,104.21,104.18,2.5290825]
[1770097804316,1.92029512,104.2,104.16,6.07207133]
[1770097804518,1.92029512,104.2,104.16,2.5290825]
[1770097804519,5.46328395,104.2,104.16,2.5290825]
[1770097804934,1.91779397,104.19,104.16,2.5290825]
[1770097805133,1.91779397,104.18,104.15,0.2]
[1770097805337,33.58626569,104.21,104.15,0.2]
[1770097805338,1.91779397,104.16,104.15,0.2]
[1770097805507,1.91779397,104.16,104.13,2.5290825]
[1770097805713,11.51887057,104.16,104.13,2.5290825]
[1770097806027,15.0618594,104.16,104.13,2.5290825]
[1770097809236,1.90807337,104.13,104.1,0.2]
[1770097809544,3.54298883,104.13,104.1,2.7290825]
[1770097810240,15.05229898,104.13,104.1,2.7290825]
[1770097810838,13.14658638,104.13,104.1,2.7290825]
[1770097812138,5.44406092,104.15,104.11,2.5290825]
[1770097812326,13.14452507,104.15,104.12,2.5290825]
[1770097812642,15.04559716,104.15,104.12,2.5290825]
[1770097813123,11.50260833,104.15,104.12,2.5290825]
[1770097813943,9.60153624,104.15,104.12,2.5290825]
[1770097814126,9.60153624,104.15,104.13,2.5290825]
[1770097814843,15.03883437,104.15,104.12,2.5290825]
[1770097815222,1.8943093,104.14,104.11,2.5290825]
[1770097815428,15.03883437,104.15,104.11,2.5290825]
[1770097817046,5.43291808,104.14,104.11,2.5290825]
[1770097817731,15.03445432,104.15,104.12,2.5290825]
[1770097823934,1.87338685,104.14,104.11,2.47011425]
[1770097824447,15.01791192,104.15,104.11,2.47011425]
[1770097825428,13.14452507,104.15,104.11,2.47011425]
[1770097827451,15.01209219,104.15,104.11,2.47011425]
[1770097829367,1.86379786,104.14,104.1,2.67011425]
[1770097829654,3.54298883,104.12,104.1,2.67011425]
[1770097829833,13.14636921,104.13,104.1,2.67011425]
[1770097830035,9.60338038,104.13,104.1,2.67011425]
[1770097830956,9.60293846,104.14,104.11,2.47011425]
[1770097831354,11.46305315,104.14,104.11,2.47011425]
[1770097832058,15.00604198,104.14,104.11,2.47011425]
[1770097832439,13.14592729,104.14,104.11,2.47011425]
[1770097832640,9.60293846,104.14,104.11,2.47011425]
[1770097837060,14.99548956,104.14,104.11,2.47011425]
[1770097838268,9.60293846,104.14,104.11,2.47011425]
[1770097838476,14.99285075,104.15,104.12,2.47011425]
[1770097839882,9.60198836,104.15,104.12,12.07440371]
[1770097840177,9.59995509,104.17,104.14,2.47011425]
[1770097840473,1.8445541,104.16,104.13,2.47011425]
[1770097840888,5.38591174,104.15,104.12,2.47011425]
[1770097841166,5.38591174,104.14,104.11,2.47011425]
[1770097841366,3.54298883,104.13,104.11,2.47011425]
[1770097841667,5.38591174,104.13,104.1,2.67011425]
[1770097841844,14.99003296,104.13,104.1,2.67011425]
[1770097842044,13.14711005,104.13,104.1,2.67011425]
[1770097843056,14.98682657,104.13,104.1,2.67011425]
[1770097844270,13.14711005,104.13,104.1,2.67011425]
[1770097848960,14.97764016,104.13,104.1,2.67011425]
[1770097854471,9.60412122,104.13,104.1,2.67011425]
[1770097854773,13.14711005,104.13,104.1,2.67011425]
[1770097855775,14.96500104,104.13,104.1,2.67011425]
[1770097857477,3.54298883,104.12,104.1,2.67011425]
[1770097857677,14.96500104,104.13,104.1,2.67011425]
[1770097860581,14.9717143,104.13,104.1,2.67011425]
[1770097861587,9.60412122,104.13,104.1,2.67011425]
[1770097862286,11.41428739,104.13,104.1,2.67011425]
[1770097862593,11.41305535,104.14,104.11,2.57292669]
[1770097863089,19.23584354,104.15,104.11,2.57292669]
[1770097863671,1.80770794,104.13,104.1,12.3786272]
[1770097863980,5.35741003,104.13,104.1,2.77292669]
[1770097864979,1.80649997,104.11,104.1,0.2]
[1770097866958,13.15479947,104.12,104.1,0.2]
[1770097866959,14.95892495,104.12,104.1,0.2]
[1770097870276,5.35036714,104.11,104.09,0.2]
[1770097870586,1.60066505,104.09,104.05,2.57292669]
[1770097870790,4.94924006,104.07,104.04,0.2]
[1770097871286,4.94924006,104.07,104.04,2.77292669]
[1770097872400,14.55880239,104.07,104.04,2.77292669]
[1770097873494,3.54970209,104.06,104.04,2.77292669]
[1770097874272,14.55880239,104.07,104.04,2.77292669]
[1770097875475,13.15956992,104.06,104.04,2.77292669]
[1770097876394,14.55514558,104.06,104.04,0.2]
[1770097877791,13.15956992,104.06,104.04,2.77292669]
[1770097877990,14.55551066,104.07,104.04,2.77292669]
[1770097879589,2.57741245,104.11,104.07,2.57292669]
[1770097879795,15.73300084,104.11,104.07,2.57292669]
[1770097881084,12.18329875,104.11,104.07,15.62076799]
[1770097881884,13.15445461,104.12,104.08,2.46239011]
[1770097882082,27.55786703,104.14,104.1,2.46239011]
[1770097882596,9.60293369,104.14,104.11,2.46239011]
[1770097882780,13.15171951,104.15,104.11,6.0120922]
[1770097883176,13.15171951,104.15,104.11,2.46239011]
[1770097883396,13.15171951,104.15,104.12,2.46239011]
[1770097883573,9.60201742,104.15,104.12,2.46239011]
[1770097883999,11.97343545,104.15,104.12,2.46239011]
[1770097884195,15.52313754,104.15,104.12,2.46239011]
[1770097885686,2.43508853,104.13,104.1,2.46239011]
[1770097886800,12.03848644,104.13,104.1,2.46239011]
[1770097886992,9.60339791,104.13,104.1,2.46239011]
[1770097887186,9.60279982,104.14,104.11,2.46239011]
[1770097887388,15.61795512,104.15,104.11,2.46239011]
[1770097888105,37.15541938,104.15,104.11,2.46239011]
[1770097888289,6.04190751,104.14,104.11,2.46239011]
[1770097888886,15.64510374,104.14,104.11,2.46239011]
[1770097890210,13.15289832,104.14,104.11,2.46239011]
[1770097890787,15.7208245,104.14,104.11,2.46239011]
[1770097893107,12.17112241,104.14,104.11,2.46239011]
[1770097893615,15.7208245,104.14,104.11,2.46239011]
[1770097898123,15.7208245,104.14,104.09,2.46239011]
[1770097898124,6.13528343,104.12,104.09,2.46239011]
[1770097900818,9.60522524,104.11,104.09,2.46239011]
[1770097901820,15.74008075,104.12,104.09,2.46239011]
[1770097903622,15.73915757,104.13,104.1,2.46239011]
[1770097903801,9.60288152,104.14,104.11,2.46239011]
[1770097904129,15.7372348,104.15,104.12,2.46239011]
[1770097904421,3.54970209,104.14,104.12,2.46239011]
[1770097904602,6.13528343,104.14,104.12,2.46239011]
[1770097905419,3.54970209,104.14,104.12,2.46239011]
[1770097906824,15.7372348,104.15,104.12,2.46239011]
[1770097909628,24.00178633,104.16,104.12,2.46239011]
[1770097909629,15.7363462,104.16,104.12,2.46239011]
[1770097909808,9.60106277,104.16,104.13,2.46239011]
[1770097910128,26.81455842,104.2,104.15,2.71290961]
[1770097910429,9.59785008,104.19,104.16,2.71290961]
[1770097910808,15.96834355,104.19,104.16,2.71290961]
[1770097911419,12.41864146,104.19,104.16,2.71290961]
[1770097913421,2.71892443,104.18,104.15,2.94348898]
[1770097913628,3.54970209,104.17,104.15,2.94348898]
[1770097915440,13.14940293,104.17,104.15,2.94348898]
[1770097916016,9.59970084,104.17,104.15,2.94348898]
[1770097919429,2.71892443,104.16,104.13,2.94348898]
[1770097919633,6.26862652,104.16,104.13,2.94348898]
[1770097920243,2.71892443,104.15,104.12,2.94348898]
[1770097920419,6.26672363,104.15,104.12,2.94348898]
[1770097920733,3.5477992,104.15,104.12,2.94348898]
[1770097922232,13.1496051,104.15,104.12,2.94348898]
[1770097923432,13.1496051,104.15,104.13,2.94348898]
[1770097925433,15.86781579,104.16,104.13,2.94348898]
[1770097926321,3.5477992,104.15,104.13,2.94348898]
[1770097927947,6.26672363,104.15,104.13,2.94348898]
[1770097928136,6.26672363,104.14,104.11,12.54821999]
[1770097928334,6.26672363,104.14,104.12,2.94348898]
[1770097928737,15.86894543,104.15,104.12,2.94348898]
[1770097940051,2.71892443,104.12,104.09,2.94348898]
[1770097940235,3.5477992,104.1,104.08,3.06521635]
[1770097941249,3.5477992,104.11,104.09,3.06521635]
[1770097942346,13.15310919,104.11,104.09,3.06521635]
[1770097943048,13.15310919,104.11,104.08,9.60797658]
[1770097943851,13.15310919,104.11,104.07,9.89324021]
[1770097944345,16.35100121,104.11,104.07,9.89324021]
[1770097944734,3.5477992,104.1,104.07,9.89324021]
[1770097945148,3.5477992,104.1,104.08,3.06521635]
[1770097946035,16.35100121,104.11,104.08,9.6079007]
[1770097946249,37.16386326,104.12,104.09,3.06521635]
[1770097946453,6.74569122,104.11,104.09,3.06521635]
[1770097947152,6.74569122,104.1,104.07,12.95800744]
[1770097947345,6.74569122,104.1,104.08,3.06521635]
[1770097948354,13.15404363,104.1,104.07,3.06521635]
[1770097948553,3.19789202,104.07,104.04,0.2]
[1770097948741,6.74569122,104.08,104.04,0.2]
[1770097949645,16.35381316,104.08,104.04,9.81127553]
[1770097950354,3.19789202,104.09,104.05,3.68996077]
[1770097950534,3.19789202,104.09,104.06,3.06521635]
[1770097951057,6.74569122,104.11,104.07,3.06521635]
[1770097951436,3.19789202,104.1,104.07,3.06521635]
[1770097952348,16.35137979,104.11,104.08,3.06521635]
[1770097952748,12.80358059,104.11,104.08,3.06521635]
[1770097954260,3.19789202,104.1,104.08,3.06521635]
[1770097956266,16.35137979,104.11,104.08,3.06521635]
[1770097956566,9.60471542,104.12,104.09,3.06521635]
[1770097957163,12.80260744,104.12,104.09,3.06521635]
[1770097957544,16.349396,104.13,104.1,3.06521635]
[1770097957752,3.19789202,104.14,104.11,3.06521635]
[1770097957975,6.74569122,104.14,104.11,3.06521635]
[1770097958763,9.60293482,104.14,104.11,3.06521635]
[1770097958944,3.19789202,104.13,104.11,3.06521635]
[1770097959151,12.80082684,104.14,104.11,3.06521635]
[1770097961070,3.19789202,104.15,104.12,6.61301555]
[1770097961652,3.19789202,104.15,104.13,3.06521635]
[1770097962458,12.79784682,104.17,104.14,3.06521635]
[1770097962771,3.19789202,104.16,104.14,3.06521635]
[1770097963775,3.19789202,104.16,104.13,3.06521635]
[1770097963776,12.7985772,104.16,104.13,3.06521635]
[1770097964875,3.19789202,104.16,104.13,12.66851774]
[1770097965074,3.19789202,104.16,104.14,3.06521635]
[1770097967683,12.79899425,104.16,104.13,3.06521635]
[1770097969966,3.19789202,104.15,104.13,3.06521635]
[1770097974080,3.20184246,104.16,104.14,3.18367712]
[1770097980082,12.80197427,104.17,104.14,3.18367712]
[1770097980305,12.80197427,104.17,104.14,6.73147632]
[1770097982403,3.20184246,104.16,104.14,3.18367712]
[1770097982685,12.80197427,104.17,104.14,3.18367712]
[1770097989391,103.3,104.2,104.16,3.18367712]
[1770097989392,3.20184246,104.19,104.16,3.18367712]
[1770097989787,12.80016063,104.19,104.16,3.18367712]
[1770097991191,12.80016063,104.19,104.16,6.72987458]
[1770097991697,3.20184246,104.18,104.16,6.72987458]
[1770097992900,3.20184246,104.19,104.16,6.72987458]
[1770097993292,3.20184246,104.19,104.16,3.18367712]
[1770097998999,3.20184246,104.18,104.16,3.18367712]
[1770098000604,13.10424231,104.2,104.17,3.58265459]
[1770098000902,9.59738335,104.2,104.17,3.58265459]
[1770098001100,3.50685896,104.19,104.17,3.58265459]
[1770098002812,3.50685896,104.19,104.17,7.12885205]
[1770098003379,3.50685896,104.2,104.18,3.58265459]
[1770098005304,13.10386527,104.2,104.18,3.58265459]
[1770098005722,3.50685896,104.19,104.17,3.58265459]
[1770098006500,13.10386527,104.2,104.17,3.58265459]
[1770098011024,9.59714858,104.2,104.18,3.58265459]
[1770098011196,3.50685896,104.21,104.18,3.58265459]
[1770098012215,3.50685896,104.2,104.17,3.58265459]
[1770098013325,13.10438236,104.2,104.17,3.58265459]
[1770098015000,13.10438236,104.2,104.18,3.58265459]
[1770098015616,3.50685896,104.2,104.18,3.58265459]
[1770098016404,3.50685896,104.21,104.18,7.12885205]
[1770098016908,3.50685896,104.21,104.18,3.58265459]
[1770098017518,13.10341551,104.21,104.18,3.58265459]
[1770098020541,3.50685896,104.2,104.18,3.58265459]
[1770098021011,3.50685896,104.2,104.17,7.12885205]
[1770098021201,3.50685896,104.2,104.17,3.58265459]
[1770098022316,3.50685896,104.2,104.16,16.72903363]
[1770098022317,3.50685896,104.19,104.16,16.72903363]
[1770098022517,3.50685896,104.19,104.15,16.72987597]
[1770098022818,3.50685896,104.19,104.16,3.58265459]
[1770098024323,13.1050635,104.19,104.15,9.60102392]
[1770098024626,3.50685896,104.17,104.14,3.58265459]
[1770098024825,7.05305642,104.17,104.14,3.58265459]
[1770098025016,3.50685896,104.16,104.13,13.18560053]
[1770098025540,3.50685896,104.15,104.12,3.58265459]
[1770098025929,3.50685896,104.14,104.11,3.58265459]
[1770098026226,3.50685896,104.15,104.12,7.12885205]
[1770098026411,13.10847974,104.15,104.12,3.58265459]
[1770098027634,3.50685896,104.15,104.12,16.73297436]
[1770098028010,3.50685896,104.15,104.12,7.12885205]
[1770098028925,13.10840901,104.15,104.12,7.12885205]
[1770098029329,3.50685896,104.15,104.12,16.73315287]
[1770098031128,3.50685896,104.15,104.13,3.61783883]
[1770098031802,3.34611953,104.16,104.13,3.61783883]
[1770098032008,3.34611953,104.18,104.15,3.61783883]
[1770098032413,3.34611953,104.17,104.14,7.16403629]
[1770098032730,3.34611953,104.17,104.14,3.61783883]
[1770098033828,3.34611953,104.17,104.14,7.16403629]
[1770098034325,12.94592686,104.17,104.14,3.61783883]
[1770098036532,12.94592686,104.17,104.14,13.22025907]
[1770098036829,3.34611953,104.17,104.14,13.22025907]
[1770098037028,3.34611953,104.17,104.14,16.76645653]
[1770098037910,12.94589862,104.17,104.14,3.61783883]
[1770098040115,3.34611953,104.17,104.14,16.76633219]
[1770098040310,3.54619746,104.19,104.15,3.61783883]
[1770098040516,3.34611953,104.2,104.17,3.61783883]
[1770098041037,3.34611953,104.2,104.18,3.61783883]
[1770098041244,3.34611953,104.21,104.18,3.61783883]
[1770098041424,12.94261047,104.21,104.18,3.61783883]
[1770098041934,3.34611953,104.2,104.17,7.16403629]
[1770098042121,3.34611953,104.2,104.17,3.61783883]
[1770098042842,3.34611953,104.2,104.18,3.61783883]
[1770098046142,3.34611953,104.21,104.19,3.61783883]
[1770098048955,12.94185257,104.22,104.19,3.61783883]
[1770098049547,3.34611953,104.21,104.19,3.61783883]
[1770098051645,12.94215569,104.21,104.19,3.61783883]
[1770098051830,12.94215569,104.21,104.18,3.61783883]
[1770098052232,3.34611953,104.2,104.17,3.61783883]
[1770098053047,3.34611953,104.18,104.15,13.21889769]
[1770098053552,3.34611953,104.18,104.16,3.61783883]
[1770098054247,3.34611953,104.19,104.16,3.61783883]
[1770098054429,3.34611953,104.19,104.17,3.61783883]
[1770098055054,12.94404864,104.19,104.17,3.61783883]
[1770098056850,3.34611953,104.19,104.17,3.61783883]
[1770098057049,12.94355178,104.2,104.17,3.61783883]
[1770098059857,3.34611953,104.19,104.16,3.61783883]
[1770098060055,3.34611953,104.18,104.16,3.61783883]
[1770098060239,3.34611953,104.18,104.15,3.47598187]
[1770098060552,12.94554096,104.18,104.15,3.47598187]
[1770098060760,3.54961176,104.17,104.15,3.47598187]
[1770098060957,3.54961176,104.16,104.13,13.07885896]
[1770098061451,3.54961176,104.16,104.14,3.47598187]
[1770098062554,7.09394497,104.16,104.13,3.47598187]
[1770098062757,3.54961176,104.14,104.11,3.47598187]
[1770098062954,7.09394497,104.14,104.11,3.47598187]
[1770098063153,3.54961176,104.13,104.11,3.47598187]
[1770098063359,7.09394497,104.14,104.11,3.47598187]
[1770098065650,3.54961176,104.13,104.1,13.0817067]
[1770098065839,3.54961176,104.12,104.1,3.47598187]
[1770098066041,3.54961176,104.11,104.09,3.47598187]
[1770098066551,7.09394497,104.12,104.09,3.47598187]
[1770098067141,33.60875141,104.14,104.09,3.47598187]
[1770098067347,33.60875141,104.14,104.1,3.47598187]
[1770098067348,3.54961176,104.13,104.1,3.47598187]
[1770098070971,3.54961176,104.12,104.09,3.47598187]
[1770098071348,13.14855983,104.13,104.05,46.36882517]
[1770098071349,3.54961176,104.1,104.06,13.08549357]
[1770098071668,3.54961176,104.09,104.06,3.47598187]
[1770098073261,13.15670784,104.09,104.06,3.47598187]
[1770098073648,3.54961176,104.08,104.06,3.47598187]
[1770098073849,13.15670784,104.09,104.06,3.47598187]
[1770098076845,3.54961176,104.08,104.06,3.47598187]
[1770098077159,3.54433321,104.07,104.05,16.14449196]
[1770098077365,3.54433321,104.07,104.04,0.2]
[1770098077366,3.54961176,104.06,104.04,0.2]
[1770098077560,7.09394497,104.06,104.04,0.2]
[1770098078075,3.54961176,104.06,104.04,0.2]
[1770098082578,3.54961176,104.06,104.04,3.67598187]
[1770098085774,9.60964682,104.07,104.04,3.74433321]
[1770098085983,13.15809855,104.08,104.06,3.47598187]
[1770098086272,13.15809855,104.08,104.05,3.47598187]
[1770098087875,3.54961176,104.06,104.04,0.2]
[1770098089685,7.09394497,104.06,104.04,0.2]
[1770098091088,7.09394497,104.06,104.01,3.90972878]
[1770098091089,3.54433321,104.05,104.01,3.90972878]
[1770098091289,9.60985522,104.06,104.01,0.2]
[1770098091290,7.08217445,104.03,104.01,0.2]
[1770098091585,3.53784124,104.05,104.01,3.90972878]
[1770098091774,3.53784124,104.05,104.02,3.70972878]
[1770098093188,13.1489835,104.05,104.02,7.25406199]
[1770098093569,3.53784124,104.04,104.02,3.70972878]
[1770098094003,13.1489835,104.05,104.02,3.70972878]
[1770098095192,3.53784124,104.05,104.02,13.15779679]
[1770098095380,3.53784124,104.05,104.02,16.86752557]
[1770098096408,3.53784124,104.05,104.03,3.70972878]
[1770098097697,3.44168128,104.05,104.03,3.70972878]
[1770098098197,9.61027762,104.06,104.03,3.70972878]
[1770098099676,13.14811886,104.06,104.03,3.70972878]
[1770098099879,3.53784124,104.07,104.04,3.70972878]
[1770098100079,3.53784124,104.07,104.05,3.70972878]
[1770098100276,3.53784124,104.1,104.07,3.70972878]
[1770098101190,9.60659309,104.1,104.07,3.70972878]
[1770098101412,3.53784124,104.09,104.05,7.25406199]
[1770098101690,3.53784124,104.09,104.03,33.64407552]
[1770098101691,3.53784124,104.06,104.03,3.70972878]
[1770098101884,3.53784124,104.05,104.02,3.70972878]
[1770098102085,3.53784124,104.04,104.01,3.90972878]
[1770098103192,3.5552598,104.05,104.01,3.90972878]
[1770098103499,7.09310104,104.05,104.01,3.90972878]
[1770098103698,16.70432179,104.05,104.01,13.52411845]
[1770098104981,3.53784124,104.04,104.01,13.52411845]
[1770098105301,7.09310104,104.02,104.01,0.2]
[1770098105506,3.5552598,104.02,103.99,0.2]
[1770098105798,3.5552598,104.05,103.99,0.2]
[1770098105799,3.5552598,104.0,103.99,0.2]
[1770098105999,3.5552598,104.0,103.99,1e-08]
[1770098106205,3.5552598,104.0,103.98,0.2]
[1770098106385,3.5552598,103.99,103.97,0.1]
[1770098106582,13.17064441,104.0,103.97,3.80972878]
[1770098106786,13.17064441,104.0,103.97,0.1]
[1770098106986,3.5552598,103.99,103.97,0.1]
[1770098107582,7.09310104,103.99,103.97,0.1]
[1770098108202,3.53784124,103.99,103.97,0.1]
[1770098108400,16.70953094,103.99,103.97,0.1]
[1770098108703,3.53784124,103.98,103.97,0.1]
[1770098109505,16.70953094,103.99,103.97,0.1]
[1770098113405,3.53784124,103.98,103.97,0.1]
[1770098113605,7.09310104,103.98,103.97,0.1]
[1770098114108,7.09310104,103.98,103.96,0.2]
[1770098115311,3.5552598,103.97,103.96,0.2]
[1770098115507,3.53784124,103.96,103.95,0.1]
[1770098115686,3.53784124,103.95,103.94,0.1]
[1770098115885,7.09310104,103.95,103.93,0.1]
[1770098117503,16.71322119,103.95,103.93,0.1]
[1770098117700,7.09310104,103.94,103.92,0.1]
[1770098118114,7.09310104,103.95,103.92,3.80972878]
[1770098118295,7.09310104,103.95,103.92,13.43227164]
[1770098119290,7.09310104,103.95,103.92,3.80972878]
[1770098119609,16.71313699,103.95,103.92,3.80972878]
[1770098120297,7.45569834,103.94,103.92,0.1]
[1770098120608,3.90043854,103.94,103.92,0.1]
[1770098120805,7.45569834,103.94,103.92,0.1]
[1770098121396,17.07664215,103.94,103.92,0.1]
[1770098124110,3.90043854,103.92,103.9,0.1]
[1770098124308,7.45569834,103.93,103.9,3.92223157]
[1770098124506,3.90043854,103.92,103.9,0.1]
[1770098124706,7.45569834,103.92,103.9,0.1]
[1770098125014,3.90043854,103.92,103.9,0.1]
[1770098125310,7.45569834,103.92,103.9,0.1]
[1770098126613,3.90043854,103.92,103.9,0.1]
[1770098127706,13.52273647,103.93,103.9,3.92223157]
[1770098128899,17.07682209,103.94,103.91,3.82223157]
[1770098129994,3.90043854,103.93,103.9,13.54640321]
[1770098130829,13.52156229,103.94,103.91,3.82223157]
[1770098131130,17.07682209,103.94,103.91,3.82223157]
[1770098131298,3.90043854,103.93,103.9,13.54640321]
[1770098131908,3.90043854,103.9,103.87,9.96203612]
[1770098132102,7.45569834,103.91,103.87,3.82223157]
[1770098132723,3.5552598,103.9,103.87,13.44926254]
[1770098132926,3.5552598,103.89,103.87,3.82223157]
[1770098133301,3.5552598,103.89,103.86,3.82223157]
[1770098133302,7.45569834,103.89,103.86,3.82223157]
[1770098135124,9.62466473,103.9,103.87,3.82223157]
[1770098135326,17.08036307,103.9,103.87,3.82223157]
[1770098136026,3.5552598,103.89,103.87,3.82223157]
[1770098137527,3.5552598,103.89,103.86,3.82223157]
[1770098137528,17.08185799,103.89,103.86,3.82223157]
[1770098138223,3.90043854,103.88,103.84,9.91407371]
[1770098138406,13.18185345,103.88,103.85,3.82223157]
[1770098138609,3.5552598,103.88,103.86,3.82223157]
[1770098139109,7.45569834,103.89,103.86,3.82223157]
[1770098139313,3.90043854,103.89,103.86,3.82223157]
[1770098139613,3.5552598,103.9,103.86,3.82223157]
[1770098139822,17.07975009,103.91,103.87,3.82223157]
[1770098140820,9.62324393,103.92,103.89,3.82223157]
[1770098141804,13.52368247,103.92,103.89,3.82223157]
[1770098142005,17.07894227,103.92,103.89,3.82223157]
[1770098142206,13.52368247,103.92,103.89,3.82223157]
[1770098143130,21.35332907,103.93,103.89,9.62555871]
[1770098143312,17.79806927,103.93,103.9,3.82223157]
[1770098143513,3.90043854,103.92,103.89,3.82223157]
[1770098144306,13.52352305,103.92,103.89,3.82223157]
[1770098147506,21.35331885,103.93,103.9,3.82223157]
[1770098147705,17.79805905,103.93,103.9,3.82223157]
[1770098147926,9.62234966,103.93,103.9,3.82223157]
[1770098148224,13.5227882,103.93,103.9,3.82223157]
[1770098148633,17.07697348,103.94,103.9,3.82223157]
[1770098148930,3.90043854,103.93,103.9,3.82223157]
[1770098150228,13.52262267,103.93,103.9,3.82223157]
[1770098150927,8.28996008,103.94,103.91,4.08108098]
[1770098151227,17.19095896,103.94,103.91,4.08108098]
[1770098151412,4.01468923,103.93,103.9,9.62443075]
[1770098151607,4.01468923,103.93,103.9,13.70551173]
[1770098151811,4.01468923,103.93,103.91,4.08108098]
[1770098153610,4.01468923,103.92,103.88,3.5552598]
[1770098153825,17.19183722,103.93,103.89,4.08108098]
[1770098154225,4.01468923,103.92,103.89,4.08108098]
[1770098154530,4.01468923,103.92,103.88,3.5552598]
[1770098154531,4.01468923,103.91,103.88,4.08108098]
[1770098155115,4.01468923,103.92,103.89,4.08108098]
[1770098155724,13.63786878,103.92,103.89,4.08108098]
[1770098156017,17.19312858,103.92,103.89,4.08108098]
[1770098158235,13.17843935,103.92,103.88,9.62626638]
[1770098158422,7.56994903,103.9,103.87,4.08108098]
[1770098160613,4.01468923,103.89,103.86,13.70893233]
[1770098161434,4.01468923,103.89,103.87,4.08108098]
[1770098161639,17.19469009,103.9,103.87,4.08108098]
[1770098161934,13.63798547,103.92,103.88,4.08108098]
[1770098162134,4.01468923,103.92,103.89,4.08108098]
[1770098162634,13.63752523,103.92,103.89,4.08108098]
[1770098165938,7.57833729,103.94,103.9,4.08108098]
[1770098166140,7.57833729,103.95,103.91,7.64472904]
[1770098166326,4.01468923,103.95,103.92,4.08108098]
[1770098166527,13.63498773,103.95,103.92,4.08108098]
[1770098167219,7.57833729,103.94,103.91,4.08108098]
[1770098167942,4.01468923,103.94,103.91,4.08108098]
[1770098169236,13.63579279,103.94,103.91,4.08108098]
[1770098169633,4.01468923,103.94,103.91,13.70434137]
[1770098170747,3.25928483,103.93,103.9,13.70537854]
[1770098172445,6.82293289,103.93,103.9,13.70537854]
[1770098172946,3.25928483,103.93,103.9,13.70537854]
[1770098173245,7.57833729,103.94,103.91,4.08108098]
[1770098173437,13.63564094,103.94,103.91,4.08108098]
[1770098173636,17.199289,103.94,103.91,4.08108098]
[1770098174046,4.01468923,103.93,103.9,13.70537854]
[1770098174748,4.01468923,103.93,103.91,4.08108098]
[1770098174948,4.01468923,103.93,103.9,9.62429756]
[1770098175248,4.01468923,103.93,103.9,13.70537854]
[1770098180034,17.199289,103.94,103.91,4.08108098]
[1770098180233,4.01468923,103.94,103.92,4.26003212]
[1770098180535,13.6356421,103.94,103.91,4.26003212]
[1770098180936,4.04884258,103.93,103.9,4.26003212]
[1770098181746,4.04884258,103.93,103.9,13.88462168]
[1770098182868,13.66979545,103.94,103.91,4.26003212]
[1770098183951,4.04884258,103.93,103.9,13.88462168]
[1770098188256,13.6707239,103.93,103.9,13.88462168]
[1770098188459,4.04884258,103.93,103.9,13.88462168]
[1770098190145,13.67103201,103.93,103.9,4.26003212]
[1770098190842,13.67103201,103.93,103.9,13.8846611]
[1770098191067,13.67103201,103.93,103.91,4.26003212]
[1770098191068,4.04884258,103.93,103.91,4.26003212]
[1770098191249,13.67026478,103.94,103.91,4.26003212]
[1770098193671,13.67026478,103.94,103.91,13.88371899]
[1770098194266,13.67026478,103.94,103.91,4.26003212]
[1770098196181,4.04884258,103.94,103.92,4.26003212]
[1770098196469,9.62053057,103.95,103.92,4.26003212]
[1770098196674,13.66937315,103.95,103.92,4.26003212]
[1770098198477,4.04884258,103.94,103.92,4.26003212]